[Event "EICC 2025"]
[Site "Eforie-Nord"]
[Date "2025.03.16"]
[Round "2.2"]
[White "Van Foreest, Jorden"]
[Black "Seemann, Jakub"]
[Result "1-0"]
[Annotator "TA"]
[ECO "E49"]
[WhiteElo "2676"]
[BlackElo "2491"]
[PlyCount "109"]
[EventDate "2025.03.14"]
[EventType "swiss"]
[EventCountry "ROU"]
[SourceTitle "playchess.com"]
[Source "ChessBase"]
[SourceQuality "1"]
[TimeControl "40/5400+30:1800+30"]

{[%evp 13,109,1,17,-20,0,0,1,0,2,-9,16,0,0,3,11,4,6,10,16,17,8,12,26,19,30,15,50,46,49,15,24,20,35,33,51,47,44,51,60,50,46,44,50,41,58,50,149,127,140,127,127,124,133,129,150,150,143,123,131,147,139,112,256,291,271,248,425,395,745,726,735,914,1688,1315,572,1377,29943,6428,29964,29961,5410,5122,29981,29982,29983,29984,29984,29985,29989,29989,29990,29989,29991,29990,29990,29991,29991,29987]} 1. d4 {[%emt 0:00:05]} Nf6 {[%emt 0:00:12]} 2. c4 {[%emt 0:00:16]} e6 {[%emt 0:00:03]} 3. Nc3 {[%emt 0:00:23]} Bb4 {[%emt 0:00:04]} 4. e3 {[%emt 0:00:17]} O-O {[%emt 0:00:17]} 5. Bd3 {[%emt 0:00:30]} d5 {[%emt 0:00:10]} 6. a3 {[%emt 0:00:38]} Bxc3+ {[%emt 0:00:20]} 7. bxc3 {[%emt 0:00:13]} c6 {[%emt 0:00:17][%cal Oe6e5]} 8. a4 {[%emt 0:03:36] E49: Nimzo-Indian: Rubinstein: 5 Bd3 d5 6 a3 Bxc3+ 7 bxc3.} b6 {[%emt 0:02:32]} 9. Ba3 {[%emt 0:07:12]} Re8 {[%emt 0:00:46]} 10. Nf3 {[%emt 0:00:41] The position is equal.} Ba6 {[%emt 0:04:22]} 11. Qe2 $146 {[%emt 0:03:03]} (11. Ne5 Qc8 12. O-O Nbd7 13. f4) (11. cxd5 Bxd3 12. Qxd3 cxd5 13. c4 Nc6 14. O-O dxc4 15. Qxc4 Rc8 16. Qa6 Qd7 17. Rac1 {½-½ Sarana,A (2666)-Cheparinov,I (2664) Wch Rapid Warsaw 2021 (4)}) 11... Nbd7 {[%emt 0:12:41]} 12. cxd5 {[%emt 0:03:44]} Bxd3 {[%emt 0:01:30]} 13. Qxd3 {[%emt 0:00:07]} cxd5 {[%emt 0:00:33]} 14. O-O {[%emt 0:04:47]} Qc7 {[%emt 0:07:14]} 15. Rfc1 {[%emt 0:01:56]} Rac8 {[%emt 0:03:21]} 16. Nd2 {[%emt 0:03:02][%cal Bf3d2,Bd2f1,Bf1g3][%mdl 32] Prevents Qc4.} e5 {[%emt 0:11:01]} (16... Ng4 {is more complex.} 17. g3 e5 18. c4 Qc6) 17. h3 {[%emt 0:01:50]} exd4 {[%emt 0:05:45]} 18. cxd4 {[%emt 0:01:09]} Qb7 {[%emt 0:00:06]} 19. Nf1 {[%emt 0:11:58]} Rxc1 {[%emt 0:04:53]} 20. Rxc1 {[%emt 0:00:15]} Rc8 {[%emt 0:00:10]} 21. Rc2 {[%emt 0:00:09]} Rxc2 {[%emt 0:14:34]} 22. Qxc2 {[%emt 0:00:06]} Nb8 {[%emt 0:01:38]} 23. Ng3 {[%emt 0:01:45]} Qc6 {[%emt 0:01:41]} 24. Qb3 {[%emt 0:00:31]} g6 {[%emt 0:01:14] Wards off Nf5} 25. Ne2 {[%emt 0:06:08]} Nbd7 {[%emt 0:00:26]} 26. Nc3 {[%emt 0:00:56]} a6 {[%emt 0:03:09]} 27. g4 {[%emt 0:06:00]} Qe6 {[%emt 0:01:14]} 28. Ne2 {[%emt 0:07:44]} h6 {[%emt 0:07:26]} 29. Qd3 {[%emt 0:07:49]} Qe4 {[%emt 0:06:23]} (29... a5 $14) 30. Qxe4 {[%emt 0:01:40]} Nxe4 $16 {[%emt 0:01:37][%mdl 4096] Endgame KBN-KNN} 31. f3 {[%emt 0:03:26] Dodges f5} Nd2 {[%emt 0:00:13]} 32. Kf2 {[%emt 0:00:04]} Nc4 {[%emt 0:00:07]} 33. Be7 {[%emt 0:00:13]} f6 {[%emt 0:05:48]} 34. Nc3 {[%emt 0:02:14]} Kf7 {[%emt 0:00:03]} 35. Nxd5 {[%emt 0:00:05]} Nb2 {[%emt 0:00:03]} 36. Ba3 {[%emt 0:04:23]} Nxa4 {[%emt 0:00:06]} 37. Nc7 {[%emt 0:00:29] White is more active.} f5 {[%emt 0:04:50] A mistake that costs the game.} (37... Nb8 $16 {might work better.} 38. Ke1 b5) 38. e4 $18 {[%emt 0:02:09]} fxe4 {[%emt 0:01:57]} 39. fxe4 {[%emt 0:00:03][%cal Bf3e4,Be4e5][%mdl 32] Threatens to win with e5!.} Nc3 $2 {[%emt 0:00:09]} (39... Nf8 40. Ke3 (40. Nxa6 Nc3 $18) 40... Ne6 41. Nxa6 Nc3) 40. e5 {[%emt 0:00:48] [#]} ({Not} 40. Nxa6 Nxe4+ 41. Kg2 Ndf6 $11) 40... Ne4+ $2 {[%emt 0:01:04]} (40... Nf8 41. Bb4 (41. Nxa6 Ne6 $14) (41. d5 Nxd5 42. Nxd5 Nd7 $18) 41... Na2 42. Nxa6 Nxb4 43. Nxb4 Ke6) 41. Ke3 {[%emt 0:30:10]} Ng5 {[%emt 0:01:20]} 42. h4 {[%emt 0:00:00][%cal Bh3h4,Bh4g5][%mdl 32]} Ne6 {[%emt 0:00:04]} 43. Nxe6 {[%emt 0:00:00]} Kxe6 {[%emt 0:00:02] KB-KN} 44. Ke4 {[%emt 0:00:00] [#]} Kf7 {[%emt 0:04:35]} 45. d5 {[%emt 0:00:00][%cal Bd4d5,Bd5d6,Bd6d7][%mdl 32]} Ke8 {[%emt 0:00:21]} 46. g5 {[%emt 0:00:00]} hxg5 {[%emt 0:00:04]} 47. hxg5 {[%emt 0:00:00] White wants to mate with e6.} b5 {[%emt 0:02:47]} 48. e6 {[%emt 0:00:00] White mates.} Nb6 {[%emt 0:00:02]} 49. d6 {[%emt 0:00:00]} a5 {[%emt 0:00:31]} 50. Bc5 {[%emt 0:00:00]} Nc4 {[%emt 0:00:16]} 51. d7+ {[%emt 0:00:00]} Kd8 {[%emt 0:00:02]} 52. Bd4 {[%emt 0:00:00]} Kc7 {[%emt 0:00:01]} 53. Bf6 {[%emt 0:00:00]} Nd6+ {[%emt 0:00:23]} 54. Kd5 {[%emt 0:00:00]} Nb7 {[%emt 0:00:05]} 55. Be5+ {[%emt 0:00:00] Weighted Error Value: White=0.04 (flawless) /Black=0.50  Mistake:       	---       	Black=4      Inaccurate:     	White=1     	Black=1      OK:         	White=18    	Black=13     Best:        	White=3     	Black=1} 1-0

[Event "EICC 2025"]
[Site "Eforie-Nord"]
[Date "2025.03.16"]
[Round "2.2"]
[White "Sargsyan, Sargis Vach."]
[Black "Livaic, Leon"]
[Result "1/2-1/2"]
[Annotator "ChessBase"]
[ECO "B07"]
[WhiteElo "2424"]
[BlackElo "2562"]
[PlyCount "84"]
[EventDate "2025.03.14"]
[EventType "swiss"]
[EventCountry "ROU"]
[SourceTitle "playchess.com"]
[Source "ChessBase"]
[SourceQuality "1"]
[TimeControl "40/5400+30:1800+30"]

1. e4 {[%emt 0:00:22]} d6 {[%emt 0:00:46]} 2. d4 {[%emt 0:00:25]} Nf6 {[%emt 0:00:07]} 3. Nc3 {[%emt 0:00:09]} e5 {[%emt 0:00:06]} 4. dxe5 {[%emt 0:01:12]} dxe5 {[%emt 0:00:05]} 5. Qxd8+ {[%emt 0:00:06]} Kxd8 {[%emt 0:00:04]} 6. Bc4 {[%emt 0:00:05]} Ke8 {[%emt 0:00:05]} 7. f4 {[%emt 0:00:23]} Bb4 {[%emt 0:00:16]} 8. Bd3 {[%emt 0:00:07]} Nbd7 {[%emt 0:00:10]} 9. Nf3 {[%emt 0:01:47]} Nc5 {[%emt 0:00:26]} 10. O-O {[%emt 0:12:36]} Bxc3 {[%emt 0:00:16]} 11. bxc3 {[%emt 0:00:06]} Nfxe4 {[%emt 0:00:14]} 12. Re1 {[%emt 0:02:38]} Nxd3 {[%emt 0:00:13]} 13. cxd3 {[%emt 0:00:05]} Nd6 {[%emt 0:00:13]} 14. c4 {[%emt 0:03:16]} Be6 {[%emt 0:01:43]} 15. Bb2 {[%emt 0:07:07]} exf4 {[%emt 0:01:11]} 16. Bxg7 {[%emt 0:00:10]} Rg8 {[%emt 0:00:07]} 17. Bh6 {[%emt 0:00:40]} Kd7 {[%emt 0:05:37]} 18. Ne5+ {[%emt 0:00:46]} Ke7 {[%emt 0:04:35]} 19. Bxf4 {[%emt 0:00:44]} Nf5 {[%emt 0:28:12]} 20. Nf3 {[%emt 0:07:26]} Rad8 {[%emt 0:04:10]} 21. Rad1 {[%emt 0:01:49]} c5 {[%emt 0:01:18]} 22. a4 {[%emt 0:03:05]} f6 {[%emt 0:08:44]} 23. a5 {[%emt 0:01:45]} Kf7 {[%emt 0:02:10]} 24. Rb1 {[%emt 0:05:03]} Rd7 {[%emt 0:00:37]} 25. Rb3 {[%emt 0:06:27]} Rgd8 {[%emt 0:02:35]} 26. Reb1 {[%emt 0:00:59]} Rxd3 {[%emt 0:01:21]} 27. Rxd3 {[%emt 0:01:07]} Rxd3 {[%emt 0:00:05]} 28. Rxb7+ {[%emt 0:00:04]} Rd7 {[%emt 0:00:42]} 29. a6 {[%emt 0:01:03]} Ke8 {[%emt 0:03:28]} 30. Nd2 {[%emt 0:04:29]} Nd6 {[%emt 0:05:48]} 31. Bxd6 {[%emt 0:08:26]} Rxd6 {[%emt 0:00:04]} 32. Ne4 {[%emt 0:03:54]} Rxa6 {[%emt 0:00:21]} 33. Nxf6+ {[%emt 0:00:11]} Kd8 {[%emt 0:00:17]} 34. Rxh7 {[%emt 0:03:32]} Bxc4 {[%emt 0:01:03]} 35. Ne4 {[%emt 0:00:26]} Ra1+ {[%emt 0:01:41]} 36. Kf2 {[%emt 0:00:10]} Ra2+ {[%emt 0:00:28]} 37. Kg3 {[%emt 0:01:48]} Bd5 {[%emt 0:00:33]} 38. Nxc5 {[%emt 0:00:30]} Rxg2+ {[%emt 0:01:41]} 39. Kf4 {[%emt 0:00:05]} Ke8 {[%emt 0:00:53]} 40. h4 {[%emt 0:01:41]} Bf7 {[%emt 0:04:22]} 41. Ne4 {[%emt 0:30:18]} Kf8 {[%emt 0:30:35]} 42. Ng5 {[%emt 0:00:48]} Kg8 {[%emt 0:02:27]} 1/2-1/2

[Event "EICC 2025"]
[Site "Eforie-Nord"]
[Date "2025.03.16"]
[Round "2.3"]
[White "Lodici, Lorenzo"]
[Black "Dobrikov, Marco"]
[Result "1-0"]
[Annotator "TA"]
[ECO "A01"]
[WhiteElo "2559"]
[BlackElo "2410"]
[PlyCount "251"]
[EventDate "2025.03.14"]
[EventType "swiss"]
[EventCountry "ROU"]
[SourceTitle "playchess.com"]
[Source "ChessBase"]
[SourceQuality "1"]
[TimeControl "40/5400+30:1800+30"]

{[%evp 9,251,2,10,11,13,8,13,12,9,0,17,35,23,35,39,21,44,0,0,0,7,-1,0,-10,0,0,0,0,0,0,0,0,0,-8,-4,-12,-8,-9,0,0,0,-36,-36,-37,-36,-36,-11,-11,-20,-20,-4,-6,0,0,0,0,0,0,0,0,0,0,0,-27,0,0,0,0,0,0,0,0,0,0,0,-37,-39,-44,-36,-86,0,0,0,0,8,8,8,8,8,8,8,8,8,8,11,0,8,8,37,40,42,36,33,37,41,35,38,35,71,70,70,70,71,70,70,70,70,70,70,70,70,70,70,70,70,70,70,70,70,70,70,70,70,62,70,70,71,71,82,70,70,59,70,70,70,27,70,70,70,70,70,70,70,70,70,70,72,70,70,70,72,70,72,72,70,70,70,63,70,70,70,61,70,70,70,56,70,70,71,70,72,20,20,20,58,8,8,8,66,66,70,8,8,8,66,59,59,59,59,59,59,59,59,59,154,139,145,130,130,130,176,173,216,169,202,93,693,646,29960,149,156,156,168,168,823,831,1250,1664,1416,1321,1560,1131,29944,12655,4618,1033,931,822,29976,29977,29990,29991,29991,29992]} 1. b3 {[%emt 0:01:00]} e5 {[%emt 0:01:22]} 2. Bb2 {[%emt 0:00:05]} Nc6 {[%emt 0:00:04]} 3. e3 {[%emt 0:00:04]} d5 {[%emt 0:00:19]} 4. Bb5 {[%emt 0:03:54]} Nge7 {[%emt 0:03:04]} 5. Nf3 {[%emt 0:02:25]} e4 {[%emt 0:07:20]} 6. Ne5 {[%emt 0:00:12]} a6 {[%emt 0:02:19]} 7. Nxc6 {[%emt 0:00:04]} Nxc6 {[%emt 0:00:31]} 8. Bxc6+ {[%emt 0:00:02] The position is equal.} bxc6 {[%emt 0:00:05]} 9. Qh5 {[%emt 0:00:03] Inhibits Qg5.} h6 {[%emt 0:16:19]} 10. Qe5+ {[%emt 0:13:20]} Be6 {[%emt 0:01:39]} 11. d3 {[%emt 0:00:03]} exd3 {[%emt 0:13:10]} 12. cxd3 {[%emt 0:00:33]} Qd6 {[%emt 0:07:50]} 13. Nd2 {[%emt 0:07:35]} Qxe5 {[%emt 0:00:16]} 14. Bxe5 {[%emt 0:00:01]} Bd6 {[%emt 0:01:19]} 15. Bd4 {[%emt 0:05:13][%cal Oa1c1]} f6 {[%emt 0:05:00]} 16. Ke2 {[%emt 0:00:08]} Kd7 {[%emt 0:01:34]} 17. Rhc1 {[%emt 0:00:05]} Rhb8 {[%emt 0:00:39]} 18. Rc2 {[%emt 0:06:57]} a5 {[%emt 0:00:02]} 19. Rac1 {[%emt 0:00:05]} Ra6 {[%emt 0:00:05]} (19... Bxh2 $2 20. g3 $18) 20. Bc5 {[%emt 0:00:37]} Bg4+ {[%emt 0:02:38]} 21. Kf1 {[%emt 0:03:54]} Bf5 {[%emt 0:04:43]} (21... Bxh2 $2 22. g3 $18) 22. e4 {[%emt 0:01:20]} Bg6 {[%emt 0:00:55]} 23. g3 {[%emt 0:03:36]} Rb5 {[%emt 0:02:10]} 24. Ke2 {[%emt 0:12:14]} Bf7 {[%emt 0:03:24]} 25. Ke3 {[%emt 0:06:50]} a4 {[%emt 0:01:16]} 26. Rc3 {[%emt 0:03:02]} axb3 {[%emt 0:01:48]} 27. axb3 {[%emt 0:00:04]} Rxc5 {[%emt 0:02:56]} 28. Rxc5 {[%emt 0:00:03]} Bxc5+ {[%emt 0:00:14]} 29. Rxc5 $15 {[%emt 0:00:02][%mdl 4096] Endgame KRB-KRN} Ra2 {[%emt 0:02:46][%cal Od5d4] ...d4+! poses a challenge} 30. Nf3 {[%emt 0:00:38]} dxe4 {[%emt 0:01:16]} 31. dxe4 {[%emt 0:00:02]} Bxb3 {[%emt 0:04:20]} 32. Nd4 {[%emt 0:00:12][%csl LRb3,LRc6]} Ba4 {[%emt 0:04:13]} 33. Rc3 {[%emt 0:04:19]} g6 {[%emt 0:02:03]} 34. h4 {[%emt 0:00:37]} Bb5 {[%emt 0:01:14]} 35. g4 {[%emt 0:12:21]} Ra1 {[%emt 0:02:20]} 36. Nf3 {[%emt 0:03:18]} Kd6 {[%emt 0:00:34]} (36... c5 $5) 37. g5 $1 {[%emt 0:00:40]} hxg5 {[%emt 0:00:32]} 38. hxg5 {[%emt 0:00:01]} fxg5 {[%emt 0:00:53]} 39. Nxg5 {[%emt 0:00:02]} Rg1 {[%emt 0:03:02]} 40. Kf4 {[%emt 0:04:24]} c5 {[%emt 0:00:28]} 41. Nf7+ {[%emt 0:12:15]} Kc6 {[%emt 0:00:00]} 42. Nd8+ {[%emt 0:00:22]} Kb6 {[%emt 0:00:28]} 43. Ne6 {[%emt 0:02:17]} c4 {[%emt 0:00:04]} 44. Ke5 {[%emt 0:00:01] [#]} (44. Rc2 $15) 44... c5 {[%emt 0:04:44]} (44... c6 $1 $17 {and ...Ka5 would now be decisive} 45. f4 Rd1) 45. Nf4 $11 {[%emt 0:01:07]} Bc6 {[%emt 0:08:38]} 46. Rxc4 {[%emt 0:00:23]} Kb5 {[%emt 0:00:26]} 47. Rc2 {[%emt 0:00:45]} Rg5+ {[%emt 0:02:32]} 48. Kf6 {[%emt 0:00:39]} Rg4 {[%emt 0:00:03]} 49. Ne6 {[%emt 0:05:19]} (49. Nxg6 $2 Rxg6+ (49... Rxe4 50. Ne5 $11) (49... Bxe4 50. Rb2+ Ka4 51. Ne5 $11) 50. Kf5 Rh6 51. Rb2+ Kc4 $19) 49... Bxe4 {[%emt 0:01:41]} 50. Rxc5+ {[%emt 0:00:07]} Kb6 {[%emt 0:00:04]} 51. Rc3 {[%emt 0:01:26]} Bf5 {[%emt 0:01:28]} 52. Re3 {[%emt 0:02:47]} Kc6 {[%emt 0:02:59]} 53. f3 {[%emt 0:00:17]} Rc4 {[%emt 0:01:54]} 54. Nf8 {[%emt 0:00:52]} Bc2 {[%emt 0:02:30]} 55. Nxg6 {[%emt 0:04:26]} Kd5 {[%emt 0:02:00]} 56. Re5+ {[%emt 0:02:21]} Kd6 {[%emt 0:02:50]} 57. Re6+ {[%emt 0:00:01]} Kc7 {[%emt 0:00:52]} 58. Ne5 {[%emt 0:01:15]} Rc3 {[%emt 0:01:32]} 59. f4 {[%emt 0:00:42]} Bb1 {[%emt 0:00:11]} 60. Re7+ {[%emt 0:01:21]} Kc8 {[%emt 0:00:01]} 61. Rg7 {[%emt 0:01:08]} Rc1 {[%emt 0:00:19]} 62. Ra7 {[%emt 0:02:09] White is more active.} Rf1 {[%emt 0:01:16]} 63. Ra4 {[%emt 0:00:01]} Kc7 {[%emt 0:00:40]} 64. Nf7 {[%emt 0:02:28]} Kc6 {[%emt 0:00:21]} 65. Ng5 {[%emt 0:00:06]} Kd5 {[%emt 0:00:44]} 66. Ne6 {[%emt 0:00:10]} Re1 {[%emt 0:00:41]} 67. Rd4+ {[%emt 0:00:10]} Kc6 {[%emt 0:00:05]} 68. Ke7 {[%emt 0:01:20]} Rf1 {[%emt 0:00:42]} 69. Rd6+ {[%emt 0:00:08]} Kb5 {[%emt 0:00:04]} 70. Kf6 {[%emt 0:00:47]} Kc4 {[%emt 0:00:24]} 71. Rd4+ {[%emt 0:02:12]} Kb5 {[%emt 0:00:07]} 72. Ke5 {[%emt 0:00:47]} Kc6 {[%emt 0:00:28]} 73. Ng5 {[%emt 0:00:15]} Re1+ {[%emt 0:01:00]} 74. Kf6 {[%emt 0:01:04]} Kc5 {[%emt 0:00:18]} 75. Ra4 {[%emt 0:01:25]} Rf1 {[%emt 0:00:44]} 76. Ne4+ {[%emt 0:00:16]} Kc6 {[%emt 0:01:24]} 77. Nc3 {[%emt 0:04:43]} Bc2 {[%emt 0:01:17]} 78. Rd4 {[%emt 0:00:13]} Rf3 {[%emt 0:00:59]} 79. Nd5 {[%emt 0:01:14]} Bb1 {[%emt 0:01:43]} 80. Rd1 {[%emt 0:00:32]} Be4 {[%emt 0:00:49]} 81. Ne7+ {[%emt 0:00:20]} Kc5 {[%emt 0:00:13]} 82. Ke5 {[%emt 0:00:15]} Bd3 {[%emt 0:01:09]} 83. Nf5 {[%emt 0:00:35]} Kb4 {[%emt 0:00:38]} 84. Re1 {[%emt 0:00:52]} (84. Rxd3 Rxd3 85. Ng7 Kc5 $11 (85... Rf3 86. Kd5 $11)) 84... Rf2 {[%emt 0:00:22]} 85. Nd4 {[%emt 0:00:29] Inhibits Re2+.} Kc3 {[%emt 0:00:59][%cal Of2f4]} 86. Rc1+ {[%emt 0:00:01]} Kb2 {[%emt 0:00:38]} 87. Rc8 {[%emt 0:00:26]} Rf1 {[%emt 0:00:18]} 88. Ne6 {[%emt 0:00:26]} Bb1 {[%emt 0:00:45]} 89. Ng5 {[%emt 0:00:32]} Re1+ {[%emt 0:00:21]} 90. Kf6 {[%emt 0:00:12]} Rf1 {[%emt 0:00:06]} 91. Rc4 {[%emt 0:00:03]} Re1 {[%emt 0:01:29]} 92. Ne6 {[%emt 0:00:26]} Kb3 {[%emt 0:00:36]} 93. Rc7 {[%emt 0:00:34]} Kb4 {[%emt 0:00:33]} 94. Nd4 {[%emt 0:00:02]} Rf1 {[%emt 0:00:41] [#]} 95. Ke5 {[%emt 0:00:17]} (95. f5 $1 $16) 95... Re1+ $1 {[%emt 0:00:25]} 96. Kd6 {[%emt 0:00:23]} Rf1 {[%emt 0:00:20]} 97. Rb7+ {[%emt 0:00:22]} (97. Nc6+ $14 Kc3 98. Ke5) 97... Kc4 {[%emt 0:00:23]} 98. Ne6 {[%emt 0:00:29]} Bf5 {[%emt 0:00:27]} (98... Rd1+ $1 $11 99. Ke7 Rf1) 99. Ra7 $14 {[%emt 0:01:24]} Kd3 {[%emt 0:00:22]} 100. Nc5+ {[%emt 0:01:02]} ({Better is} 100. Ng7 $1 $14) 100... Kc4 $11 {[%emt 0:00:50]} 101. Ke5 {[%emt 0:00:02]} Bc2 {[%emt 0:01:04]} (101... Bb1 $1 $11) 102. Rc7 {[%emt 0:00:08] Intending Ne4+ and mate.} Re1+ {[%emt 0:00:47]} 103. Ne4+ $1 {[%emt 0:00:01]} Kb3 $1 {[%emt 0:00:19]} 104. Rc3+ $1 {[%emt 0:00:06]} (104. Rxc2 Kxc2 105. f5 Kd3 $11) 104... Kb2 {[%emt 0:00:00]} 105. Rc4 $1 {[%emt 0:00:07]} (105. Rxc2+ Kxc2 106. f5 Kd3 $11) 105... Kb3 {[%emt 0:00:45]} 106. Rd4 $1 {[%emt 0:00:01]} (106. Rxc2 Kxc2 107. Kd4 (107. f5 Kd3 $11) 107... Rd1+ (107... Rf1 108. Ke3 $11) 108. Ke5 Rf1 $11) 106... Kb2 {[%emt 0:00:09]} ({Black should try} 106... Rd1 $1 $14) 107. f5 $16 {[%emt 0:00:00]} Bb3 {[%emt 0:00:51]} 108. f6 {[%emt 0:00:00] and Rb4 would now be decisive} Bf7 {[%emt 0:00:21]} 109. Kd6 {[%emt 0:00:00]} Bg6 {[%emt 0:00:27]} (109... Kb3 $16 {was worth a try.} 110. Ng5 Kc3) 110. Ng5 $18 {[%emt 0:01:35]} Rg1 {[%emt 0:01:05]} 111. Ne6 {[%emt 0:00:14]} Ra1 {[%emt 0:00:28]} 112. Nf8 {[%emt 0:02:18]} (112. Nc7 $18) 112... Ra6+ $2 {[%emt 0:00:44][%mdl 8192] A mistake that costs the game.} (112... Kc3 $16) 113. Ke7 {[%emt 0:00:02]} Ra7+ {[%emt 0:00:08]} 114. Nd7 $2 {[%emt 0:00:27]} (114. Rd7 {mates} Rxd7+ 115. Nxd7 Bh5 116. Nf8 Kc3 117. Ne6 Kd2 118. Nf4 Bg4 119. f7) 114... Kc3 {[%emt 0:00:27]} 115. Rd5 {[%emt 0:00:01]} ({Worse is} 115. f7 Bxf7 116. Re4 Bg6 $11) 115... Ra8 {[%emt 0:00:21]} 116. Ne5 {[%emt 0:00:29]} Bh5 $2 {[%emt 0:00:22]} (116... Ra7+ 117. Kf8 Be4) 117. Rd3+ {[%emt 0:00:52]} Kc2 {[%emt 0:00:45]} 118. Rh3 {[%emt 0:00:02]} Ra7+ {[%emt 0:00:28]} 119. Ke6 {[%emt 0:02:16]} Ra6+ {[%emt 0:00:11]} 120. Kf5 {[%emt 0:00:02]} Be2 {[%emt 0:02:49]} 121. f7 {[%emt 0:00:22]} Ra8 {[%emt 0:00:22]} 122. Kf6 {[%emt 0:01:15]} (122. Rg3 $142 Rf8 123. Rg8 Rxf7+ 124. Nxf7) 122... Bb5 {[%emt 0:00:46]} 123. Kg7 {[%emt 0:00:25]} Ra7 {[%emt 0:00:29]} 124. Kg8 {[%emt 0:00:05] White mates.} Bf1 {[%emt 0:00:31]} 125. Rh2+ {[%emt 0:00:08]} (125. f8=R Bxh3 126. Kh8 Bd7 $11) 125... Kc3 {[%emt 0:00:25]} 126. f8=Q {[%emt 0:00:06] Weighted Error Value: White=0.06 (flawless) /Black=0.07 (flawless)   Loses game:     	---       	Black=1      Mistake:       	White=5     	Black=6      Inaccurate:     	White=5     	Black=7      OK:         	White=48    	Black=32     Best:        	White=3     	Black=8      Strong:       	White=5     	Black=2} ({Less strong is} 126. f8=B Kb3 $16) 1-0

[Event "EICC 2025"]
[Site "Eforie-Nord"]
[Date "2025.03.16"]
[Round "2.3"]
[White "Royal, Shreyas"]
[Black "Sargsyan, Shant"]
[Result "1/2-1/2"]
[Annotator "TA"]
[ECO "D35"]
[WhiteElo "2491"]
[BlackElo "2666"]
[PlyCount "89"]
[EventDate "2025.03.14"]
[EventType "swiss"]
[EventCountry "ROU"]
[SourceTitle "playchess.com"]
[Source "ChessBase"]
[SourceQuality "1"]
[TimeControl "40/5400+30:1800+30"]

{[%evp 15,89,18,17,10,15,10,18,16,18,16,31,20,48,27,31,22,22,20,24,17,18,-39,-36,-35,-28,-30,-28,-27,-24,-24,0,-34,-24,-31,-29,-21,0,0,6,-94,-87,-80,0,0,8,0,8,8,38,28,15,0,3,2,111,80,77,64,79,0,0,0,0,0,54,0,0,0,0,0,0,0,0,0,16,0]} 1. d4 {[%emt 0:00:04]} Nf6 {[%emt 0:01:27]} 2. c4 {[%emt 0:00:09]} e6 {[%emt 0:00:06]} 3. Nc3 {[%emt 0:00:11]} d5 {[%emt 0:00:07]} 4. cxd5 {[%emt 0:00:05]} exd5 {[%emt 0:00:11]} 5. Bg5 {[%emt 0:00:07]} c6 {[%emt 0:00:07]} 6. e3 {[%emt 0:00:19]} h6 {[%emt 0:00:14]} 7. Bh4 {[%emt 0:00:10]} Be7 {[%emt 0:00:05]} 8. Bd3 {[%emt 0:00:06]} O-O {[%emt 0:00:06]} 9. Nge2 {[%emt 0:01:12] 9.Bg3 is the recent fashion. D35: Queen's Gambit Declined: Exchange Variation.} Re8 {[%emt 0:00:36]} 10. O-O {[%emt 0:00:11]} a5 {[%emt 0:00:05]} 11. f3 {[%emt 0:01:21]} b5 {[%emt 0:01:49]} 12. Bf2 {[%emt 0:00:33]} Ba6 {[%emt 0:03:12]} 13. Rc1 {[%emt 0:02:15]} Bf8 $146 {[%emt 0:04:20]} (13... Nbd7 14. b3 a4 15. Qd2 Bd6 16. h3 Qe7 17. Rfe1 Nb6 18. Ng3 axb3 19. Nf5 Qd7 20. Nxd6 Qxd6 21. axb3 {½-½ Batsuren,D (2537)-Vetokhin,S (2533) Chessable Masters Play In blitz 2025 (8)}) 14. Nf4 {[%emt 0:17:44]} Nbd7 {[%emt 0:03:30]} 15. b3 {[%emt 0:09:00]} Qb8 {[%emt 0:14:16]} 16. a4 {[%emt 0:08:14]} Ba3 {[%emt 0:05:38]} 17. Rc2 {[%emt 0:03:08]} bxa4 {[%emt 0:01:26]} 18. bxa4 {[%emt 0:01:40]} ({Better is} 18. Nxa4 $11 g5 19. Ne2) 18... Bd6 $1 $15 {[%emt 0:02:05]} 19. g3 {[%emt 0:10:58]} Bxf4 {[%emt 0:06:06]} 20. gxf4 {[%emt 0:02:09]} Nb6 {[%emt 0:00:22]} 21. Bxa6 {[%emt 0:10:50]} Rxa6 {[%emt 0:00:13]} 22. f5 {[%emt 0:05:44]} Ra7 {[%emt 0:03:12]} 23. Bg3 {[%emt 0:06:26]} Qd8 {[%emt 0:01:39][%cal Ob6c4]} 24. Qd3 {[%emt 0:01:29]} Nh5 {[%emt 0:09:21]} 25. Rg2 {[%emt 0:03:14]} Rd7 {[%emt 0:09:48]} 26. Kh1 {[%emt 0:04:46]} Qe7 {[%emt 0:03:21]} 27. Be5 {[%emt 0:02:11] [#]} (27. e4 $11 {remains equal.}) 27... f6 $1 $17 {[%emt 0:07:31]} 28. f4 {[%emt 0:00:04][%cal Od3d1]} Nc4 {[%emt 0:05:23]} (28... Rf8 $17 29. Qe2 fxe5 30. Qxh5 exd4 31. exd4 Rd6) 29. Qe2 $1 $11 {[%emt 0:03:07]} fxe5 {[%emt 0:00:06]} 30. Qxh5 {[%emt 0:00:47]} (30. fxe5 $2 Qh4 (30... Nf6 31. exf6 Qxf6 32. Rg6 $11) 31. f6 Rf7 $19 (31... Nxe5 $2 32. dxe5 Rxe5 33. Rg4 $19)) 30... Nxe3 {[%emt 0:11:18]} 31. f6 {[%emt 0:01:29]} Qf8 {[%emt 0:04:58][%cal Oe3g2] White must now prevent ...Nxg2!.} (31... Qxf6 $2 32. Qxe8+ Kh7 33. Qxd7 $18 (33. dxe5 Qf7 $18)) 32. fxg7 {[%emt 0:01:30]} Rxg7 {[%emt 0:00:04]} 33. Rxg7+ {[%emt 0:00:15]} Kxg7 {[%emt 0:00:03]} 34. Rg1+ {[%emt 0:00:12]} Kh8 {[%emt 0:01:09]} (34... Kh7 $1 $11 35. fxe5 (35. dxe5 Re6 $15) 35... c5 (35... Qf5 36. Qe2 $11)) 35. fxe5 {[%emt 0:02:41]} ({But not} 35. dxe5 $6 Re6 36. Rb1 Nf5 $11 (36... Qxf4 37. Rb8+ Kh7 38. Rb7+ Kg8 39. Rb8+ Kh7 40. Rb7+ Kg8 41. Rb8+ Kh7 $11)) 35... Re6 {[%emt 0:00:55]} 36. Ne2 {[%emt 0:02:24] Inhibits Qf4.} Qf2 {[%emt 0:01:42] [#]} 37. Ng3 {[%emt 0:00:26]} (37. Rg3 $1 $16 {[%cal Oh5h4] Hoping for Qh4!.} Qf1+ 38. Ng1 (38. Rg1 Qf2 $16)) 37... Rg6 {[%emt 0:01:16][%cal Oe3g4]} 38. Qe2 $1 {[%emt 0:01:32]} Qxe2 {[%emt 0:01:09]} 39. Nxe2 {[%emt 0:00:01][%mdl 4096] Endgame KRN-KRN} Kg7 {[%emt 0:00:26]} (39... Rxg1+ $11 40. Kxg1 Nc2) 40. Rc1 {[%emt 0:01:11]} (40. Nc1 $14) 40... Kf7 {[%emt 0:00:37] The position is equal.} 41. Rc3 {[%emt 0:08:20]} Nc4 {[%emt 0:03:50]} 42. h3 {[%emt 0:00:52] Repels Rg4} Rg5 {[%emt 0:06:01]} 43. Rf3+ {[%emt 0:03:14]} Ke7 {[%emt 0:01:33][%cal Oc6c5]} 44. Rf6 {[%emt 0:05:24]} c5 {[%emt 0:02:00]} 45. Rxh6 {[%emt 0:01:01] Weighted Error Value: White=0.13 (very precise) /Black=0.13 (very precise)   Mistake:       	White=4     	Black=3      Inaccurate:     	White=1     	Black=1      OK:         	White=13    	Black=14     Best:        	White=1     	Black=1      Strong:       	White=2     	Black=2} 1/2-1/2